bitfinex/quotes_ETHUSD_20250623
["timestamp","ask_amount","ask_price","bid_price","bid_amount"]
[1750679702982,0.7824,2259.6,2258.8,10.0]
[1750679703186,0.7594,2259.4,2258.7,14.42719881]
[1750679703955,0.7594,2259.4,2258.7,10.0]
[1750679704179,0.7594,2259.4,2258.7,13.25760986]
[1750679709862,0.7987,2259.2,2258.7,13.25760986]
[1750679710197,0.7987,2259.2,2258.7,10.0]
[1750679712093,0.7987,2259.2,2258.5,0.43475756]
[1750679712265,0.7987,2259.2,2258.4,10.0]
[1750679712465,0.7987,2259.2,2258.7,10.0]
[1750679712864,0.7987,2259.2,2258.6,10.25045368]
[1750679713092,0.7987,2259.2,2258.6,11.1298198]
[1750679713898,0.7987,2259.2,2258.6,10.25045368]
[1750679714099,0.7987,2259.2,2258.5,0.4464812]
[1750679714297,0.7987,2259.2,2258.4,10.0]
[1750679714502,0.7987,2259.2,2258.3,10.25045368]
[1750679717009,0.7987,2259.2,2258.3,0.43761717]
[1750679717207,0.7838,2259.0,2258.3,0.43761717]
[1750679717409,0.7838,2259.0,2258.1,10.0]
[1750679717703,0.7838,2259.0,2257.8,1.03144936]
[1750679717704,0.7838,2259.0,2257.8,5.24170929]
[1750679718005,0.7838,2259.0,2257.9,4.42886386]
[1750679718308,0.7838,2259.0,2258.1,6.99638417]
[1750679719809,0.7573,2258.9,2258.1,6.99638417]
[1750679720012,0.7573,2258.7,2258.1,6.99638417]
[1750679720201,0.8131,2258.5,2258.1,6.99638417]
[1750679722001,0.8131,2258.5,2258.0,6.99638417]
[1750679723010,0.8131,2258.5,2258.0,10.0]
[1750679723202,0.8131,2258.5,2257.9,6.99638417]
[1750679723508,0.8197,2258.4,2257.9,6.99638417]
[1750679723707,0.8197,2258.2,2257.9,6.99638417]
[1750679724030,0.8197,2258.2,2257.8,0.43332756]
[1750679724410,0.8197,2258.2,2257.7,6.99638417]
[1750679724707,0.8197,2258.2,2257.5,6.99638417]
[1750679724708,0.8283,2258.1,2257.5,6.99638417]
[1750679725009,0.8283,2258.1,2257.7,6.99638417]
[1750679725516,0.8283,2258.1,2257.6,0.44001985]
[1750679725710,0.8283,2258.1,2257.5,10.0]
[1750679726915,0.8283,2258.1,2257.6,6.99638417]
[1750679727113,1.130527,2258.1,2257.5,10.0]
[1750679727325,1.130527,2258.1,2257.5,16.99638417]
[1750679727326,0.8204,2258.0,2257.5,16.99638417]
[1750679728390,2.7241,2257.9,2257.5,16.99638417]
[1750679728610,0.8041,2257.8,2257.5,16.99638417]
[1750679729325,1.92,2257.7,2257.5,16.99638417]
[1750679729680,0.7623,2257.6,2257.0,10.01759717]
[1750679729888,1.92,2257.5,2257.2,6.99638417]
[1750679731234,1.92,2257.5,2257.2,7.43358067]
[1750679731530,0.8139,2257.4,2257.2,7.43358067]
[1750679731732,0.8139,2257.4,2257.0,3.021213]
[1750679731733,1.08729,2257.4,2257.0,3.021213]
[1750679731934,0.8139,2257.3,2257.0,3.021213]
[1750679732321,7.26977417,2257.4,2257.0,3.021213]
[1750679732322,0.7566,2257.1,2257.0,3.021213]
[1750679735650,9.9826,2257.1,2257.0,3.021213]
[1750679738320,9.9796,2257.1,2257.0,3.021213]
[1750679738520,10.97756,2257.1,2257.0,3.021213]
[1750679739549,10.97756,2257.1,2256.2,4.43211377]
[1750679739756,10.97756,2257.1,2256.3,10.0]
[1750679740113,0.7781,2257.0,2256.3,10.0]
[1750679742062,0.7781,2257.0,2256.3,20.27802212]
[1750679742270,0.7781,2257.0,2256.7,5.19956862]
[1750679742271,1.921,2257.0,2256.7,5.19956862]
[1750679742569,1.921,2257.0,2256.7,0.7684]
[1750679743126,1.921,2257.0,2256.6,10.27802212]
[1750679743326,1.921,2257.0,2256.5,15.21611936]
[1750679743577,1.921,2257.0,2256.5,10.7845]
[1750679743775,0.27241,2257.7,2256.5,10.7845]
[1750679743776,1.08931,2257.7,2256.8,10.0]
[1750679744097,0.8169,2257.5,2256.6,0.7584]
[1750679744367,0.8169,2257.5,2256.6,10.7584]
[1750679744523,0.8169,2257.5,2256.6,10.0]
[1750679746546,7.306,2257.4,2256.6,10.0]
[1750679746746,0.8169,2257.5,2256.8,15.48027584]
[1750679746747,9.227,2257.3,2256.8,15.48027584]
[1750679746963,9.227,2257.3,2256.8,15.4803122]
[1750679747670,9.227,2257.3,2256.8,11.04932212]
[1750679747873,9.227,2257.3,2256.8,15.48035019]
[1750679748082,9.227,2257.3,2256.8,18.67430097]
[1750679748578,0.8169,2257.5,2256.8,14.2432729]
[1750679748579,1.921,2257.2,2256.8,14.2432729]
[1750679748787,1.921,2257.2,2256.8,18.67423462]
[1750679749115,1.921,2257.2,2256.8,14.2432729]
[1750679749241,1.921,2257.1,2256.9,4.43085001]
[1750679749446,1.921,2257.0,2256.9,6.94414398]
[1750679749755,1.921,2257.0,2256.9,2.51329397]
[1750679750147,1.921,2257.0,2256.7,15.49524136]
[1750679750665,1.921,2257.0,2256.7,11.06412212]
[1750679751359,1.916,2256.9,2256.7,11.06412212]
[1750679752286,1.916,2256.9,2256.7,15.4953676]
[1750679752783,0.8169,2257.5,2256.7,11.06412212]
[1750679752987,9.222,2257.4,2256.8,6.53737529]
[1750679753990,9.222,2257.4,2256.8,2.10641221]
[1750679754369,9.222,2257.4,2257.1,7.00268975]
[1750679754996,9.222,2257.4,2256.9,7.00268975]
[1750679755292,9.22,2257.3,2256.9,7.00268975]
[1750679755464,0.8169,2257.5,2256.9,7.00268975]
[1750679755667,9.22,2257.4,2256.9,7.00268975]
[1750679756385,10.22369,2257.4,2256.9,7.00268975]
[1750679758367,10.22369,2257.4,2256.6,14.43140122]
[1750679758368,0.8169,2257.5,2257.1,7.00268975]
[1750679758551,0.8169,2257.5,2257.1,7.78598975]
[1750679758755,10.648,2257.8,2257.3,7.00268975]
[1750679758974,1.916,2257.7,2257.6,7.78598975]
[1750679759388,0.7899,2257.6,2257.3,10.0]
[1750679759592,0.7899,2257.6,2257.2,10.0]
[1750679760300,0.7899,2257.6,2257.1,0.7765]
[1750679760510,2.85559,2257.6,2257.0,10.0]
[1750679760721,2.85559,2257.6,2256.9,0.8325]
[1750679761090,2.85559,2257.6,2256.8,10.0]
[1750679762184,0.7656,2257.5,2256.8,10.0]
[1750679762516,0.7656,2257.5,2256.8,12.10466649]
[1750679762813,0.7656,2257.5,2256.8,2.10466649]
[1750679762985,0.7656,2257.5,2256.5,0.8042]
[1750679763184,0.7656,2257.5,2256.5,11.24951467]
[1750679764382,0.7656,2257.5,2256.5,10.44531467]
[1750679764695,0.7656,2257.5,2256.5,0.44531467]
[1750679764891,0.7871,2257.3,2256.3,0.769]
[1750679765199,0.7871,2257.1,2256.3,0.769]
[1750679765386,7.303,2257.0,2256.3,0.769]
[1750679765592,7.303,2257.0,2256.4,20.27016487]
[1750679765790,9.219,2256.9,2256.4,20.27016487]
[1750679765985,9.219,2256.9,2256.5,2.54710871]
[1750679766801,1.916,2256.8,2256.5,2.98284386]
[1750679767419,1.916,2256.7,2256.6,0.7702]
[1750679767617,0.7871,2257.1,2256.6,0.7702]
[1750679767816,1.916,2256.8,2256.6,0.7702]
[1750679768041,1.916,2256.8,2256.7,0.8184528]
[1750679768230,1.916,2256.8,2256.6,0.7702]
[1750679769206,1.916,2256.8,2256.5,2.98284386]
[1750679769437,1.916,2256.8,2256.5,0.43573515]
[1750679769438,2.724,2256.8,2256.5,0.43573515]
[1750679769616,2.724,2256.8,2256.2,0.7639]
[1750679770842,2.724,2256.8,2256.1,20.27016487]
[1750679771046,2.724,2256.8,2256.0,0.78748909]
[1750679771572,0.7592,2256.7,2255.8,10.27016487]
[1750679771847,0.7592,2256.7,2255.5,4.43352832]
[1750679771848,0.7592,2256.5,2255.5,14.70369668]
[1750679772156,0.26752,2256.6,2255.6,14.43341005]
[1750679772157,0.7592,2256.3,2255.6,14.43341005]
[1750679772308,1.916,2256.2,2255.6,10.0]
[1750679773145,1.916,2256.2,2255.6,14.43339095]
[1750679773509,0.7592,2256.3,2255.7,4.43305877]
[1750679773847,1.916,2256.2,2256.1,10.27016487]
[1750679774016,1.916,2256.2,2256.1,11.02846487]
[1750679775320,1.916,2256.2,2256.1,15.46089251]
[1750679777224,11.4117,2256.6,2256.1,15.46089251]
[1750679777531,9.221,2256.5,2256.2,4.43222646]
[1750679777849,1.916,2256.4,2256.2,4.43222646]
[1750679778848,7.304,2256.5,2256.3,10.0]
[1750679779033,1.916,2256.4,2256.3,10.0]
[1750679779551,1.916,2256.5,2256.4,4.43178701]
[1750679779752,10.648,2256.6,2256.4,4.43178701]
[1750679780056,12.564,2256.6,2256.5,15.19224192]
[1750679781130,10.648,2256.6,2256.5,15.19224192]
[1750679781334,10.648,2256.6,2256.5,18.4805917]
[1750679781534,0.798,2257.2,2256.5,18.4805917]
[1750679781854,1.914,2256.8,2256.5,18.4805917]
[1750679783123,0.798,2257.2,2256.7,10.0]
[1750679783357,0.798,2257.2,2256.8,14.43105177]
[1750679783358,1.914,2257.1,2256.8,14.43105177]
[1750679783822,1.914,2257.1,2257.0,10.0]
[1750679784421,0.8306,2257.4,2257.0,10.0]
[1750679784622,1.913,2257.3,2257.0,10.0]
[1750679784846,1.913,2257.2,2257.0,10.0]
[1750679785060,1.913,2257.2,2257.0,10.43532663]
[1750679785445,0.8306,2257.4,2257.0,0.43532663]
[1750679785650,1.913,2257.2,2256.8,16.28660945]
[1750679785850,1.913,2257.2,2257.0,10.0]
[1750679786560,1.913,2257.2,2256.9,2.91366963]
[1750679787477,1.913,2257.2,2256.9,7.34452505]
[1750679787840,1.913,2257.2,2256.9,7.79735439]
[1750679788132,0.8306,2257.4,2257.0,4.43053455]
[1750679788319,1.913,2257.3,2257.0,4.43053455]
[1750679788524,1.913,2257.2,2257.0,5.83890229]
[1750679788886,1.913,2257.2,2257.0,15.83890229]
[1750679789385,1.913,2257.3,2257.0,15.83890229]
[1750679791358,1.913,2257.3,2257.0,11.40836774]
[1750679791534,1.913,2257.3,2257.0,1.40836774]
[1750679792028,1.913,2257.3,2256.9,3.36649897]
[1750679792361,1.913,2257.3,2256.9,7.79734979]
[1750679792858,1.913,2257.3,2256.9,3.36649897]
[1750679793267,0.8242,2257.2,2256.9,0.45282934]
[1750679793447,0.8242,2257.2,2256.7,10.0]
[1750679793653,0.8242,2257.2,2256.7,14.43118221]
[1750679794260,0.8242,2257.2,2256.6,15.24855372]
[1750679794663,0.8242,2257.2,2256.6,0.8172]
[1750679794862,0.27372,2257.1,2256.6,10.8172]
[1750679795174,0.27372,2257.1,2256.6,11.25280992]
[1750679795880,0.27372,2257.1,2256.6,10.43560992]
[1750679796443,0.27372,2257.1,2256.6,0.43560992]
[1750679796645,0.27372,2257.1,2256.5,10.0]
[1750679796646,7.57572,2257.1,2256.5,10.0]
[1750679796989,7.57572,2257.1,2256.5,14.43161886]
[1750679796990,0.839992,2257.0,2256.5,14.43161886]
[1750679797173,7.302,2257.1,2256.5,14.43161886]
[1750679798184,7.302,2257.1,2256.6,4.43136499]
[1750679798980,7.302,2257.1,2256.6,4.86700977]
[1750679799157,7.302,2257.1,2256.7,4.43124569]
[1750679799858,7.302,2257.1,2256.6,4.86696885]
[1750679800070,7.302,2257.1,2256.6,7.46332199]
[1750679800482,7.302,2257.1,2256.5,10.0]
[1750679800781,0.7735,2257.0,2256.5,10.0]
[1750679800986,0.7735,2257.0,2256.5,14.43149987]
[1750679801490,0.7735,2257.0,2256.5,10.0]
[1750679801663,0.7735,2257.0,2256.5,10.44735662]
[1750679802062,0.7735,2257.0,2256.5,14.87897535]
[1750679802265,0.7735,2257.0,2256.5,18.04543664]
[1750679802767,0.7735,2257.0,2256.5,13.61381791]
[1750679802984,0.7735,2257.0,2256.5,10.44735662]
[1750679804364,0.7735,2257.0,2256.5,14.87899076]
[1750679804568,0.7735,2257.0,2256.5,10.44735662]
[1750679806267,0.7735,2257.0,2256.7,10.0]
[1750679806861,0.7735,2257.0,2256.6,7.00584994]
[1750679807188,1.58105,2257.0,2256.6,7.00584994]
[1750679807554,0.7735,2257.0,2256.6,7.00584994]
[1750679809886,1.913,2256.9,2256.6,7.00584994]
[1750679811207,0.7922,2257.6,2256.8,7.00584994]
[1750679811372,1.912,2257.5,2257.2,7.00584994]
[1750679812201,0.7922,2257.4,2256.6,0.8266]
[1750679812406,0.7922,2257.4,2256.6,10.0]
[1750679812589,0.7922,2257.4,2256.7,7.00584994]
[1750679813193,9.213,2257.3,2256.7,7.00584994]
[1750679813498,2.91252,2257.2,2256.7,7.00584994]
[1750679813703,0.7789,2257.1,2256.6,17.00584994]
[1750679814076,0.7789,2257.1,2256.6,1.332058]
[1750679814395,0.7789,2257.1,2256.6,7.00584994]
[1750679815389,0.7789,2257.1,2256.5,0.44735662]
[1750679815693,1.183242,2257.0,2256.5,10.0]
[1750679816411,1.183242,2257.0,2256.4,1.332123]
[1750679817502,0.7537,2256.9,2256.4,1.332123]
[1750679817822,0.7537,2256.9,2256.0,4.43252077]
[1750679817823,0.7537,2256.9,2256.2,1.332265]
[1750679818102,0.7537,2256.9,2256.3,10.0]
[1750679818290,0.7537,2256.9,2256.2,1.332265]
[1750679818492,0.7537,2256.9,2256.3,10.0]
[1750679819811,0.7537,2256.9,2256.3,10.43402461]
[1750679820872,0.7537,2256.9,2256.3,0.43402461]
[1750679821073,0.7537,2256.9,2256.1,10.0]
[1750679821381,0.7537,2256.9,2256.1,14.43234464]
[1750679821597,0.7537,2256.9,2256.1,12.73030611]
[1750679821906,0.7537,2256.9,2256.1,17.1627184]
[1750679823706,0.7537,2256.9,2256.1,12.73030611]
[1750679824506,0.7537,2256.9,2256.1,17.16272081]
[1750679825572,0.7537,2256.9,2256.1,12.73030611]
[1750679826704,0.7537,2256.9,2256.2,1.84951701]
[1750679827188,1.912,2256.8,2256.3,5.20458626]
[1750679827375,0.7537,2256.9,2256.3,5.20458626]
[1750679827707,1.912,2256.8,2256.3,0.7727]
[1750679829120,1.912,2256.8,2256.3,5.20471832]
[1750679829327,1.912,2256.8,2256.4,2.17624626]
[1750679832088,1.912,2256.7,2256.5,10.27610138]
[1750679832324,1.912,2256.7,2256.5,11.60814738]
[1750679832530,1.912,2256.7,2256.6,1.82161069]
[1750679833147,1.912,2257.1,2256.7,15.242462]
[1750679833440,1.912,2257.1,2256.8,10.27610138]
[1750679833588,0.8273,2257.0,2256.6,11.82161069]
[1750679835432,0.8273,2257.0,2256.7,3.31119151]
[1750679836536,0.8273,2257.0,2256.6,11.82161069]
[1750679836847,0.8273,2257.0,2256.2,10.0]
[1750679837042,0.8273,2257.0,2256.3,1.332259]
[1750679837741,0.8273,2257.0,2256.2,4.43214932]
[1750679837926,0.8273,2257.0,2256.2,5.76440832]
[1750679838240,1.10123,2257.0,2256.4,10.0]
[1750679838419,0.7555,2256.9,2256.4,10.0]
[1750679839406,0.7555,2256.9,2256.7,7.00709126]
[1750679840811,1.912,2256.8,2256.7,7.00709126]
[1750679843132,1.91,2256.9,2256.7,11.43829004]
[1750679843335,1.91,2256.9,2256.8,5.57488181]
[1750679843920,1.91,2256.9,2256.8,1.143829]
[1750679844127,1.91,2256.9,2256.7,7.00709126]
[1750679846140,0.8199,2257.1,2256.7,7.00709126]
[1750679846141,1.91,2257.0,2256.7,7.00709126]
[1750679847355,0.8199,2257.1,2256.7,7.00709126]
[1750679847658,1.91,2257.0,2256.7,7.00709126]
[1750679848165,1.91,2257.0,2256.6,17.00709126]
[1750679848626,1.91,2257.0,2256.6,17.68672364]
[1750679850365,1.91,2257.0,2256.6,22.11816137]
[1750679851370,1.91,2257.0,2256.6,17.68672364]
[1750679851672,1.91,2257.0,2256.6,17.00709126]
[1750679852992,1.91,2257.0,2256.6,21.4385314]
[1750679853573,1.91,2257.0,2256.6,17.00709126]
[1750679854746,1.91,2257.0,2256.7,7.00709126]
[1750679855366,1.91,2257.0,2256.7,9.59408758]
[1750679855973,0.8199,2257.1,2256.9,7.00709126]
[1750679856275,1.91,2257.0,2256.9,7.00709126]
[1750679856438,1.91,2257.1,2256.9,7.00709126]
[1750679859143,0.7873,2257.3,2256.9,7.00709126]
[1750679859343,1.91,2257.2,2256.9,7.00709126]
[1750679860282,1.91,2257.1,2256.9,7.00709126]
[1750679862153,0.7873,2257.3,2256.9,8.40962489]
[1750679862362,2.6973,2257.3,2256.9,7.00709126]
[1750679862868,2.6973,2257.3,2256.7,7.00709126]
[1750679864480,2.6973,2257.3,2256.7,11.43831528]
[1750679865075,2.6973,2257.3,2256.9,7.00709126]
[1750679866175,2.6973,2257.3,2257.1,7.00709126]
[1750679866474,1.91,2257.3,2257.1,7.70780039]
[1750679867361,1.91,2257.3,2257.1,8.14649414]
[1750679867688,1.91,2257.3,2257.1,12.57692111]
[1750679868390,1.91,2257.3,2257.1,8.14649414]
[1750679869067,1.91,2257.3,2257.1,12.57695254]
[1750679869263,1.91,2257.3,2257.2,1.7007498]
[1750679869670,0.8215,2257.5,2257.2,1.7007498]
[1750679869992,1.91,2257.4,2257.2,1.7007498]
[1750679870357,1.91,2257.4,2257.1,7.44578501]
[1750679870556,1.91,2257.4,2257.1,11.87616254]
[1750679870984,1.91,2257.4,2257.1,7.44578501]
[1750679872562,1.91,2257.4,2257.1,11.87619791]
[1750679872961,1.91,2257.4,2257.1,7.44578501]
[1750679873160,1.91,2257.4,2257.2,1.18763395]
[1750679877020,1.91,2257.4,2257.1,0.43869375]
[1750679877295,0.7873,2257.3,2257.0,10.0]
[1750679877495,0.7873,2257.3,2256.9,17.00709126]
[1750679878183,0.7873,2257.3,2257.1,7.00709126]
[1750679880677,1.91,2257.4,2256.9,5.19747032]
[1750679880882,1.91,2257.4,2257.1,7.00709126]
[1750679881714,1.91,2257.4,2257.1,11.88283049]
[1750679882217,1.906,2257.4,2257.3,7.00709126]
[1750679882585,0.7889,2257.6,2257.3,7.00709126]
[1750679882786,7.00709126,2258.7,2257.5,7.00709126]
[1750679882787,1.906,2257.7,2257.5,7.00709126]
[1750679884016,1.906,2257.7,2257.3,5.2308824]
[1750679884017,1.906,2257.7,2257.4,7.00709126]
[1750679884932,1.906,2257.7,2257.3,7.00709126]
[1750679885145,0.8318,2257.6,2257.1,10.0]
[1750679885937,0.8318,2257.6,2256.6,0.7639]
[1750679886118,0.8318,2257.6,2256.4,9.6272884]
[1750679886119,0.8237,2257.5,2256.4,9.6272884]
[1750679886317,0.7797,2257.3,2256.5,21.43872744]
[1750679886517,2.6857,2257.2,2256.7,10.0]
[1750679886706,2.6857,2257.2,2256.8,1.44314436]
[1750679889802,9.196,2257.1,2256.8,1.44314436]
[1750679891307,9.196,2257.1,2256.7,10.44941079]
[1750679893837,0.7797,2257.2,2257.0,7.00709126]
[1750679894336,1.907,2257.2,2257.0,7.00709126]
[1750679894630,1.907,2257.4,2257.0,11.43764888]
[1750679894801,1.907,2257.4,2257.3,7.00709126]
[1750679895334,1.907,2257.4,2257.3,8.15083632]
[1750679895837,1.907,2257.4,2257.1,7.00709126]
[1750679897037,1.907,2257.4,2257.1,7.4462115]
[1750679897534,1.907,2257.4,2257.1,0.43912024]
[1750679897723,0.8065,2257.3,2256.9,11.43794483]
[1750679898428,0.8065,2257.3,2257.0,4.43064312]
[1750679898630,0.8065,2257.3,2257.1,1.14377344]
[1750679899841,0.8065,2257.3,2257.1,8.1508647]
[1750679900018,0.8065,2257.3,2257.1,8.5945295]
[1750679900839,0.8065,2257.3,2257.1,0.4436648]
[1750679901141,0.8065,2257.3,2256.9,7.00709126]
[1750679901442,0.8065,2257.3,2256.9,11.43793392]
[1750679902938,0.8065,2257.3,2256.9,7.00709126]
[1750679903138,0.8065,2257.3,2256.9,11.43782159]
[1750679903440,0.8065,2257.3,2257.1,7.00709126]
[1750679903643,1.907,2257.4,2257.1,7.45368337]
[1750679904463,1.907,2257.4,2257.1,11.8841379]
[1750679904663,13.3375,2257.5,2257.3,7.00709126]
[1750679904843,12.552,2257.5,2257.3,8.27093606]
[1750679905162,10.598,2257.5,2257.3,8.27093606]
[1750679908846,10.598,2257.5,2257.3,1.2638448]
[1750679909740,0.7565,2257.4,2257.1,7.45368337]
[1750679909939,0.7565,2257.4,2257.1,0.44659211]
[1750679910252,8.0425,2257.4,2257.0,1.14378216]
[1750679910653,8.0425,2257.4,2257.0,1.59152415]
[1750679910965,0.8228,2257.3,2256.6,7.00709126]
[1750679912258,0.8228,2257.3,2256.4,10.0]
[1750679912462,0.8228,2257.3,2256.3,7.00709126]
[1750679912678,0.8228,2257.3,2256.4,10.0]
[1750679912878,0.8313,2257.1,2256.4,10.0]
[1750679913029,0.8278,2256.9,2256.3,7.00709126]
[1750679913850,0.8278,2256.9,2256.3,11.43912184]
[1750679914581,0.8278,2256.9,2256.3,16.31968688]
[1750679914759,0.8278,2256.9,2256.4,4.43183012]
[1750679915066,0.8278,2256.9,2256.4,6.06377876]
[1750679915446,0.8278,2256.9,2256.5,7.00709126]
[1750679917667,0.8278,2256.9,2256.4,1.63194864]
[1750679918470,0.8278,2256.9,2256.4,6.0637487]
[1750679918673,0.8278,2256.9,2256.5,7.00709126]
[1750679921583,0.8278,2256.9,2256.5,8.80224717]
[1750679923581,0.8278,2256.9,2256.5,1.79515591]
[1750679923779,0.8278,2256.9,2256.5,8.80224717]
[1750679925378,0.8278,2256.9,2256.7,7.00709126]
[1750679927678,0.8278,2256.9,2256.5,1.79515591]
[1750679927923,0.8278,2256.9,2256.6,7.76299317]
[1750679932286,1.904,2257.0,2256.8,7.00709126]
[1750679933385,2.7112,2257.0,2256.8,7.00709126]
[1750679933597,2.7112,2257.0,2256.6,7.76299317]
[1750679937299,0.8196,2256.9,2256.4,11.43889549]
[1750679937475,0.8196,2256.9,2256.6,7.00709126]
[1750679938562,0.781,2257.1,2256.8,7.00709126]
[1750679938779,1.903,2257.0,2256.8,7.00709126]
[1750679940500,1.903,2257.0,2256.6,7.00709126]
[1750679941805,1.903,2257.0,2256.7,10.0]
[1750679942889,1.903,2257.0,2256.6,7.00709126]
[1750679942890,0.7816,2256.9,2256.4,17.00709126]
[1750679943090,0.7816,2256.9,2256.5,2.27072185]
[1750679944003,0.7816,2256.9,2256.5,12.27072185]
[1750679944317,0.7816,2256.9,2256.6,7.00709126]
[1750679945237,0.7816,2256.9,2256.8,7.00709126]
[1750679946320,0.7816,2256.9,2256.5,2.27072185]
[1750679948015,0.7816,2256.9,2256.4,17.00709126]
[1750679948016,0.7816,2256.9,2256.4,10.0]
[1750679957419,0.7672,2256.7,2256.3,10.44870741]
[1750679957743,1.903,2256.6,2256.3,10.0]
[1750679958457,1.903,2256.6,2256.4,7.00709126]
[1750679959859,1.903,2256.6,2256.4,8.77075692]
[1750679960062,0.7571,2257.0,2256.4,8.77075692]
[1750679960063,2.6601,2257.0,2256.4,13.20252487]
[1750679960362,2.6601,2257.0,2256.6,7.00709126]
[1750679961865,1.903,2256.9,2256.6,7.00709126]
[1750679964379,0.7571,2257.0,2256.6,7.00709126]
[1750679964550,1.903,2256.9,2256.6,8.46056092]
[1750679965362,0.7571,2257.0,2256.6,8.46056092]
[1750679965571,1.903,2256.9,2256.6,8.46056092]
[1750679966746,0.7571,2257.0,2256.6,8.46056092]
[1750679966948,1.9,2256.9,2256.6,1.45346966]
[1750679967147,1.9,2256.9,2256.6,8.46056092]
[1750679967382,0.7695,2257.2,2256.7,1.64295609]
[1750679967583,1.9,2257.0,2256.7,0.7969]
[1750679969383,1.9,2257.0,2256.6,8.33916126]
[1750679975475,1.9,2257.0,2256.6,7.00709126]
[1750679978948,1.9,2257.0,2256.5,0.8204]
[1750679979144,0.8234,2256.9,2256.3,0.43297706]
[1750679979384,8.90709126,2257.0,2256.0,17.79539126]
[1750679979385,0.8234,2256.7,2256.0,17.79539126]
[1750679979683,7.278,2256.6,2256.2,7.00709126]
[1750679979978,1.9,2256.5,2256.2,7.00709126]
[1750679980350,1.9,2256.5,2256.0,0.7883]
[1750679980548,1.9,2256.5,2256.2,7.00709126]
[1750679980784,1.9,2256.5,2256.2,8.22988461]
[1750679981852,1.9,2256.5,2256.2,8.68335931]
[1750679986290,0.7744,2257.2,2256.4,7.81829126]
[1750679986489,9.177,2257.1,2256.4,7.81829126]
[1750679986798,0.7523,2257.0,2256.4,7.81829126]
[1750679989900,1.9,2256.9,2256.4,7.81829126]
[1750679990888,0.8183,2256.8,2256.2,14.88561247]
[1750679991204,0.8183,2256.8,2256.4,7.00709126]
[1750679991973,1.9,2256.7,2256.4,7.82199126]
[1750679992173,1.9,2256.7,2256.5,1.22540192]
[1750679992767,20.598,2257.5,2256.7,4.43110172]
[1750679992768,1.9,2257.2,2256.7,4.43110172]
[1750679992970,11.37,2257.5,2257.1,7.00709126]
[1750679993274,1.9,2257.2,2257.1,7.00709126]
[1750679993502,1.9,2257.2,2257.0,0.8292]
[1750679993727,1.9,2257.2,2257.0,7.83629126]
[1750679994028,1.9,2257.2,2257.0,7.00709126]
[1750679994624,18.646,2257.5,2257.0,7.00709126]
[1750679994625,11.37,2257.5,2257.0,8.2307975]
[1750679994795,11.37,2257.5,2257.2,7.00709126]
[1750679995213,1.9,2257.4,2257.2,7.00709126]
[1750679997608,1.9,2257.4,2256.8,0.799]
[1750679997930,1.9,2257.4,2256.9,7.00709126]
[1750679998117,3.9545,2257.4,2256.9,7.00709126]
[1750679999340,11.2285,2257.4,2256.9,7.00709126]
[1750679999685,0.8123,2257.3,2256.6,10.0]
[1750680000313,0.8123,2257.3,2256.7,11.43832146]
[1750680000515,0.8123,2257.3,2256.9,7.00709126]
[1750680002455,9.17,2257.4,2257.1,7.00709126]
[1750680002752,11.3615,2257.5,2257.3,7.00709126]
[1750680002951,9.17,2257.4,2257.1,7.00709126]
[1750680003113,11.3615,2257.5,2257.1,7.00709126]
[1750680003315,9.169,2257.4,2257.1,7.00709126]
[1750680003529,1.896,2257.4,2257.2,1.14376616]
[1750680003723,1.896,2257.4,2257.3,7.00709126]
[1750680004325,12.494,2257.5,2257.3,7.00709126]
[1750680004867,10.598,2257.5,2257.3,7.00709126]
[1750680005048,12.494,2257.5,2257.3,7.00709126]
[1750680005227,10.598,2257.5,2257.2,1.14376616]
[1750680005417,12.494,2257.5,2257.2,1.14376616]
[1750680005947,12.494,2257.5,2256.9,2.03409753]
[1750680006153,0.7656,2257.4,2256.9,19.04118879]
[1750680006457,0.7656,2257.4,2256.9,18.23378879]
[1750680006829,0.7656,2257.4,2257.1,7.00709126]
[1750680007126,1.12339742,2258.4,2257.2,7.80459126]
[1750680007127,0.7658,2257.8,2257.2,7.80459126]
[1750680007331,0.7658,2257.8,2257.4,7.00709126]
[1750680007545,0.7658,2257.8,2257.4,7.45673976]
[1750680008739,0.7658,2257.8,2257.4,11.88661346]
[1750680008937,0.7658,2257.8,2257.4,7.45673976]
[1750680009431,9.168,2257.9,2257.4,7.45673976]
[1750680009432,1.896,2257.9,2257.6,7.00709126]
[1750680009632,1.896,2257.9,2257.8,7.00709126]
[1750680010158,1.896,2257.9,2257.6,7.00709126]
[1750680011058,1.896,2257.9,2257.6,11.43653994]
[1750680011457,1.896,2257.9,2257.8,7.00709126]
[1750680012356,7.271,2258.1,2257.8,7.00709126]
[1750680012357,0.8293,2258.2,2257.8,7.00709126]
[1750680012526,1.896,2258.1,2257.8,7.00709126]
[1750680014124,1.896,2258.1,2257.8,7.82579126]
[1750680014324,1.896,2258.1,2258.0,7.00709126]
[1750680014957,0.8293,2258.2,2258.0,7.00709126]
[1750680015127,1.896,2258.2,2258.0,7.00709126]
[1750680015737,0.7535,2258.4,2258.0,7.00709126]
[1750680015953,9.165,2258.3,2258.0,7.00709126]
[1750680017044,1.896,2258.3,2258.0,7.00709126]
[1750680018546,1.896,2258.3,2258.1,10.0]
[1750680020391,0.7535,2258.4,2258.1,10.0]
[1750680020862,9.163,2258.3,2258.1,10.0]
[1750680021075,0.8204,2258.7,2258.2,7.81169126]
[1750680021284,9.163,2258.6,2258.4,7.00709126]
[1750680021968,9.163,2258.6,2258.2,7.81169126]
[1750680022325,0.8204,2258.7,2258.2,7.81169126]
[1750680022528,9.162,2258.6,2258.2,9.03571793]